[Event "Titled Tuesday Blitz July 05 Late 2022"]
[White "Weisz, Bryan"]
[Black "Romanchuk, Viktor"]
[WhiteFideId "30934133"]
[BlackFideId "14109271"]
[WhiteElo "2273"]
[BlackElo "2242"]
[Result "0-1"]
[Round "01"]
[TimeControl "180+1"]
[Date "2022.07.06"]
[WhiteClock "0:00:11"]
[BlackClock "0:00:14"]

1. e4 {[%clk 0:02:59]}  e6 {[%clk 0:02:59]} 2. d4 {[%clk 0:02:59]}  d5 {[%clk 0:02:59]} 3. Nd2 {[%clk 0:02:55]}  dxe4 {[%clk 0:02:57]} 4. Nxe4 {[%clk 0:02:55]}  Nd7 {[%clk 0:02:58]} 5. Nf3 {[%clk 0:02:54]}  Ngf6 {[%clk 0:02:59]} 6. Nxf6+ {[%clk 0:02:53]}  Nxf6 {[%clk 0:03:00]} 7. c3 {[%clk 0:02:53]}  c5 {[%clk 0:03:00]} 8. Ne5 {[%clk 0:02:54]}  a6 {[%clk 0:03:00]} 9. Qa4+ {[%clk 0:02:52]}  Nd7 {[%clk 0:02:59]} 10. Bb5 {[%clk 0:02:52]}  cxd4 {[%clk 0:02:52]} 11. cxd4 {[%clk 0:02:49]}  Rb8 {[%clk 0:02:46]} 12. Bxd7+ {[%clk 0:02:21]}  Bxd7 {[%clk 0:02:43]} 13. Nxd7 {[%clk 0:02:21]}  Qxd7 {[%clk 0:02:44]} 14. Qxd7+ {[%clk 0:02:21]}  Kxd7 {[%clk 0:02:45]} 15. Be3 {[%clk 0:02:16]}  Rc8 {[%clk 0:02:38]} 16. Kd2 {[%clk 0:02:11]}  Be7 {[%clk 0:02:34]} 17. Rhc1 {[%clk 0:02:11]}  g6 {[%clk 0:02:23]} 18. Rxc8 {[%clk 0:02:08]}  Rxc8 {[%clk 0:02:22]} 19. Rc1 {[%clk 0:02:08]}  Rxc1 {[%clk 0:02:21]} 20. Kxc1 {[%clk 0:02:09]}  Kc6 {[%clk 0:02:21]} 21. Kd2 {[%clk 0:02:08]}  Kd5 {[%clk 0:02:22]} 22. Kd3 {[%clk 0:02:09]}  f5 {[%clk 0:02:17]} 23. f4 {[%clk 0:02:07]}  h6 {[%clk 0:02:11]} 24. g3 {[%clk 0:02:02]}  g5 {[%clk 0:02:09]} 25. b3 {[%clk 0:01:35]}  g4 {[%clk 0:02:05]} 26. a4 {[%clk 0:01:23]}  Bb4 {[%clk 0:01:56]} 27. Bf2 {[%clk 0:01:13]}  h5 {[%clk 0:01:51]} 28. Ke3 {[%clk 0:01:11]}  Kc6 {[%clk 0:01:44]} 29. Kd3 {[%clk 0:01:11]}  b5 {[%clk 0:01:45]} 30. axb5+ {[%clk 0:01:10]}  axb5 {[%clk 0:01:41]} 31. Ke3 {[%clk 0:00:52]}  Kd5 {[%clk 0:01:37]} 32. Kd3 {[%clk 0:00:52]}  Ba5 {[%clk 0:01:38]} 33. Ke3 {[%clk 0:00:47]}  Bc3 {[%clk 0:01:25]} 34. Kd3 {[%clk 0:00:46]}  Bb2 {[%clk 0:01:26]} 35. Be3 {[%clk 0:00:42]}  Ba3 {[%clk 0:01:24]} 36. Bf2 {[%clk 0:00:41]}  Bc1 {[%clk 0:01:24]} 37. Be3 {[%clk 0:00:32]}  Ba3 {[%clk 0:01:04]} 38. Bf2 {[%clk 0:00:28]}  Bb4 {[%clk 0:01:04]} 39. Ke3 {[%clk 0:00:26]}  Kc6 {[%clk 0:01:03]} 40. Kd3 {[%clk 0:00:26]}  Ba3 {[%clk 0:00:57]} 41. Be1 {[%clk 0:00:23]}  Bc1 {[%clk 0:00:46]} 42. b4 {[%clk 0:00:17]}  Kd5 {[%clk 0:00:42]} 43. Bf2 {[%clk 0:00:16]}  h4 {[%clk 0:00:32]} 44. Kc2 {[%clk 0:00:13]}  hxg3 {[%clk 0:00:18]} 45. hxg3 {[%clk 0:00:11]}  Ba3 {[%clk 0:00:13]} 46. Be3 {[%clk 0:00:07]}  Bxb4 {[%clk 0:00:12]} 47. Kd3 {[%clk 0:00:04]}  Be1 {[%clk 0:00:11]} 48. Bg1 {[%clk 0:00:03]}  Bxg3 {[%clk 0:00:11]} 49. Be3 {[%clk 0:00:03]}  Be1 {[%clk 0:00:11]} 50. Ke2 {[%clk 0:00:02]}  Bc3 {[%clk 0:00:10]} 51. Kd3 {[%clk 0:00:03]}  b4 {[%clk 0:00:11]} 52. Bf2 {[%clk 0:00:02]}  Bb2 {[%clk 0:00:10]} 53. Be3 {[%clk 0:00:02]}  g3 {[%clk 0:00:10]} 54. Bg1 {[%clk 0:00:02]}  g2 {[%clk 0:00:10]} 55. Bf2 {[%clk 0:00:01]}  b3 {[%clk 0:00:09]} 56. Bg1 {[%clk 0:00:01]}  Bc1 {[%clk 0:00:07]} 57. Kc3 {[%clk 0:00:02]}  Bxf4 {[%clk 0:00:07]} 58. Kxb3 {[%clk 0:00:02]}  Ke4 {[%clk 0:00:08]} 59. Kc2 {[%clk 0:00:03]}  Be3 {[%clk 0:00:08]} 60. Bh2 {[%clk 0:00:01]}  Bxd4 {[%clk 0:00:08]} 61. Kd2 {[%clk 0:00:01]}  g1=Q {[%clk 0:00:09]} 62. Bxg1 {[%clk 0:00:02]}  Bxg1 {[%clk 0:00:10]} 63. Ke2 {[%clk 0:00:03]}  Be3 {[%clk 0:00:10]} 64. Kf1 {[%clk 0:00:03]}  f4 {[%clk 0:00:11]} 65. Ke2 {[%clk 0:00:04]}  f3+ {[%clk 0:00:12]} 66. Kf1 {[%clk 0:00:05]}  Kd3 {[%clk 0:00:12]} 67. Ke1 {[%clk 0:00:06]}  e5 {[%clk 0:00:13]} 68. Kf1 {[%clk 0:00:05]}  e4 {[%clk 0:00:14]} 69. Ke1 {[%clk 0:00:06]}  Bd4 {[%clk 0:00:15]} 70. Kf1 {[%clk 0:00:07]}  e3 {[%clk 0:00:15]} 71. Ke1 {[%clk 0:00:07]}  f2+ {[%clk 0:00:14]} 72. Kf1 {[%clk 0:00:08]}  Kd2 {[%clk 0:00:14]} 73. Kg2 {[%clk 0:00:08]}  Ke2 {[%clk 0:00:15]} 74. Kh2 {[%clk 0:00:08]}  f1=Q {[%clk 0:00:16]} 75. Kg3 {[%clk 0:00:07]}  Qf6 {[%clk 0:00:15]} 76. Kh2 {[%clk 0:00:07]}  Ba1 {[%clk 0:00:16]} 77. Kh3 {[%clk 0:00:08]}  Qg6 {[%clk 0:00:15]} 78. Kh2 {[%clk 0:00:08]}  Kd3 {[%clk 0:00:15]} 79. Kh3 {[%clk 0:00:09]}  e2 {[%clk 0:00:15]} 80. Kh2 {[%clk 0:00:10]}  e1=Q {[%clk 0:00:16]} 81. Kh3 {[%clk 0:00:11]}  Qe3+ {[%clk 0:00:13]} 82. Kh2 {[%clk 0:00:11]}  Qeh6# {[%clk 0:00:14]} 0-1


[Site "https://www.chess.com"]

[Event "Titled Tuesday Blitz July 05 Late 2022"]
[White "Yuan, Qingyu"]
[Black "Silva, Miguel Antonio Neto"]
[WhiteFideId "8609772"]
[BlackFideId "1911929"]
[WhiteElo "2359"]
[BlackElo "2223"]
[Result "1-0"]
[Round "01"]
[TimeControl "180+1"]
[Date "2022.07.06"]
[WhiteClock "0:00:13"]
[BlackClock "0:00:23"]

1. e4 {[%clk 0:03:00]}  c5 {[%clk 0:02:59]} 2. Nf3 {[%clk 0:03:00]}  d6 {[%clk 0:02:59]} 3. Bb5+ {[%clk 0:03:00]}  Nd7 {[%clk 0:02:59]} 4. c4 {[%clk 0:03:00]}  Nf6 {[%clk 0:02:59]} 5. Nc3 {[%clk 0:03:00]}  g6 {[%clk 0:02:59]} 6. h3 {[%clk 0:03:00]}  Bg7 {[%clk 0:02:59]} 7. d3 {[%clk 0:03:01]}  O-O {[%clk 0:02:59]} 8. Ba4 {[%clk 0:03:01]}  a6 {[%clk 0:02:58]} 9. Be3 {[%clk 0:02:57]}  Nb8 {[%clk 0:02:53]} 10. Qd2 {[%clk 0:02:49]}  Bd7 {[%clk 0:02:49]} 11. Bxd7 {[%clk 0:02:37]}  Qxd7 {[%clk 0:02:48]} 12. O-O {[%clk 0:02:33]}  e5 {[%clk 0:02:47]} 13. Rab1 {[%clk 0:02:26]}  Nc6 {[%clk 0:02:46]} 14. a3 {[%clk 0:02:24]}  Nd4 {[%clk 0:02:42]} 15. Bxd4 {[%clk 0:02:09]}  cxd4 {[%clk 0:02:37]} 16. Ne2 {[%clk 0:01:53]}  b5 {[%clk 0:02:35]} 17. Rfc1 {[%clk 0:01:52]}  Rfc8 {[%clk 0:02:06]} 18. b3 {[%clk 0:01:46]}  bxc4 {[%clk 0:01:51]} 19. Rxc4 {[%clk 0:01:42]}  Rxc4 {[%clk 0:01:48]} 20. bxc4 {[%clk 0:01:41]}  Qc7 {[%clk 0:01:47]} 21. Qb4 {[%clk 0:01:40]}  h5 {[%clk 0:01:39]} 22. Nc1 {[%clk 0:01:32]}  Bf8 {[%clk 0:01:38]} 23. Qb7 {[%clk 0:01:29]}  Qd8 {[%clk 0:01:35]} 24. Ng5 {[%clk 0:01:05]}  Be7 {[%clk 0:01:21]} 25. Nf3 {[%clk 0:00:56]}  Nd7 {[%clk 0:01:07]} 26. Qb4 {[%clk 0:00:41]}  Nc5 {[%clk 0:01:04]} 27. Qd2 {[%clk 0:00:39]}  Rb8 {[%clk 0:01:03]} 28. Qc2 {[%clk 0:00:38]}  Rxb1 {[%clk 0:01:01]} 29. Qxb1 {[%clk 0:00:39]}  Qa5 {[%clk 0:01:02]} 30. Qb4 {[%clk 0:00:39]}  Qc7 {[%clk 0:00:59]} 31. Ne1 {[%clk 0:00:36]}  a5 {[%clk 0:00:57]} 32. Qb5 {[%clk 0:00:35]}  a4 {[%clk 0:00:51]} 33. Na2 {[%clk 0:00:35]}  Bg5 {[%clk 0:00:47]} 34. Nb4 {[%clk 0:00:33]}  Bd2 {[%clk 0:00:46]} 35. Nd5 {[%clk 0:00:33]}  Qd8 {[%clk 0:00:45]} 36. Nf3 {[%clk 0:00:33]}  Bc3 {[%clk 0:00:42]} 37. Qb1 {[%clk 0:00:33]}  Ba5 {[%clk 0:00:40]} 38. Kf1 {[%clk 0:00:27]}  Kg7 {[%clk 0:00:40]} 39. Ke2 {[%clk 0:00:27]}  Nb3 {[%clk 0:00:39]} 40. g4 {[%clk 0:00:26]}  h4 {[%clk 0:00:38]} 41. g5 {[%clk 0:00:26]}  Qd7 {[%clk 0:00:35]} 42. Qf1 {[%clk 0:00:22]}  Bd8 {[%clk 0:00:30]} 43. Qg2 {[%clk 0:00:18]}  Nc5 {[%clk 0:00:29]} 44. Qg4 {[%clk 0:00:14]}  Qb7 {[%clk 0:00:29]} 45. Qxh4 {[%clk 0:00:12]}  Qb2+ {[%clk 0:00:28]} 46. Kf1 {[%clk 0:00:13]}  Nxd3 {[%clk 0:00:28]} 47. Ne1 {[%clk 0:00:11]}  Nxe1 {[%clk 0:00:25]} 48. Qh6+ {[%clk 0:00:11]}  Kg8 {[%clk 0:00:24]} 49. Nf6+ {[%clk 0:00:12]}  Bxf6 {[%clk 0:00:23]} 50. gxf6 {[%clk 0:00:13]} 1-0


[Site "https://www.chess.com"]

[Event "Titled Tuesday Blitz July 05 Late 2022"]
[White "Zhigalko, Sergei"]
[Black "Bernal Moro, Luis Javier"]
[WhiteFideId "13502956"]
[BlackFideId "2200236"]
[WhiteElo "2662"]
[BlackElo "2376"]
[Result "1-0"]
[Round "01"]
[TimeControl "180+1"]
[Date "2022.07.05"]
[WhiteClock "0:00:06"]
[BlackClock "0:00:08"]

1. e4 {[%clk 0:03:00]}  c5 {[%clk 0:02:59]} 2. Nf3 {[%clk 0:03:00]}  e6 {[%clk 0:02:58]} 3. c3 {[%clk 0:03:00]}  Nf6 {[%clk 0:02:58]} 4. e5 {[%clk 0:03:01]}  Nd5 {[%clk 0:02:58]} 5. Bc4 {[%clk 0:03:01]}  d6 {[%clk 0:02:56]} 6. d4 {[%clk 0:03:01]}  cxd4 {[%clk 0:02:53]} 7. cxd4 {[%clk 0:03:02]}  Nb6 {[%clk 0:02:50]} 8. Bd3 {[%clk 0:02:58]}  Nc6 {[%clk 0:02:47]} 9. O-O {[%clk 0:02:53]}  dxe5 {[%clk 0:02:47]} 10. dxe5 {[%clk 0:02:53]}  Nb4 {[%clk 0:02:46]} 11. Be4 {[%clk 0:02:53]}  Qxd1 {[%clk 0:02:45]} 12. Rxd1 {[%clk 0:02:54]}  N4d5 {[%clk 0:02:34]} 13. Nc3 {[%clk 0:02:53]}  Nxc3 {[%clk 0:02:33]} 14. bxc3 {[%clk 0:02:54]}  Na4 {[%clk 0:02:17]} 15. Bd2 {[%clk 0:01:05]}  Nc5 {[%clk 0:02:16]} 16. Bc2 {[%clk 0:01:03]}  Bd7 {[%clk 0:02:16]} 17. Be3 {[%clk 0:01:01]}  Rc8 {[%clk 0:02:13]} 18. a4 {[%clk 0:00:51]}  Be7 {[%clk 0:02:08]} 19. a5 {[%clk 0:00:50]}  Bc6 {[%clk 0:01:44]} 20. Rab1 {[%clk 0:00:46]}  O-O {[%clk 0:01:05]} 21. Nd4 {[%clk 0:00:44]}  Be4 {[%clk 0:01:05]} 22. Bxe4 {[%clk 0:00:37]}  Nxe4 {[%clk 0:01:06]} 23. Rxb7 {[%clk 0:00:38]}  Nxc3 {[%clk 0:01:06]} 24. Rd3 {[%clk 0:00:24]}  Nd5 {[%clk 0:00:41]} 25. Rxa7 {[%clk 0:00:24]}  Bc5 {[%clk 0:00:40]} 26. Rb7 {[%clk 0:00:16]}  Bxd4 {[%clk 0:00:39]} 27. Rxd4 {[%clk 0:00:15]}  Nxe3 {[%clk 0:00:23]} 28. fxe3 {[%clk 0:00:16]}  Rc1+ {[%clk 0:00:23]} 29. Kf2 {[%clk 0:00:16]}  Ra1 {[%clk 0:00:22]} 30. Ra7 {[%clk 0:00:12]}  g5 {[%clk 0:00:16]} 31. h4 {[%clk 0:00:11]}  h6 {[%clk 0:00:14]} 32. hxg5 {[%clk 0:00:11]}  hxg5 {[%clk 0:00:14]} 33. Rg4 {[%clk 0:00:12]}  Rb8 {[%clk 0:00:14]} 34. Rxg5+ {[%clk 0:00:11]}  Kf8 {[%clk 0:00:14]} 35. Rg4 {[%clk 0:00:04]}  Rb2+ {[%clk 0:00:14]} 36. Kg3 {[%clk 0:00:03]}  Ra3 {[%clk 0:00:09]} 37. Rf4 {[%clk 0:00:03]}  Rxe3+ {[%clk 0:00:09]} 38. Kh2 {[%clk 0:00:03]}  Rxe5 {[%clk 0:00:08]} 39. Rfxf7+ {[%clk 0:00:04]}  Kg8 {[%clk 0:00:07]} 40. Rg7+ {[%clk 0:00:04]}  Kf8 {[%clk 0:00:07]} 41. Rh7 {[%clk 0:00:05]}  Rg5 {[%clk 0:00:07]} 42. Rh8+ {[%clk 0:00:04]}  Rg8 {[%clk 0:00:07]} 43. Ra8+ {[%clk 0:00:05]}  Kf7 {[%clk 0:00:08]} 44. Raxg8 {[%clk 0:00:06]} 1-0


[Site "https://www.chess.com"]

[Event "Titled Tuesday Blitz July 05 Late 2022"]
[White "Abdrlauf, Elham"]
[Black "Adewumi, Tanitoluwa"]
[WhiteFideId "1533533"]
[BlackFideId "30966396"]
[WhiteElo "2429"]
[BlackElo "2572"]
[Result "1-0"]
[Round "02"]
[TimeControl "180+1"]
[Date "2022.07.05"]
[WhiteClock "0:00:53"]
[BlackClock "0:00:46"]

1. e4 {[%clk 0:02:57]}  c5 {[%clk 0:02:58]} 2. Nf3 {[%clk 0:02:56]}  e6 {[%clk 0:02:59]} 3. c3 {[%clk 0:02:55]}  d5 {[%clk 0:02:58]} 4. e5 {[%clk 0:02:55]}  Bd7 {[%clk 0:02:58]} 5. d4 {[%clk 0:02:55]}  Qb6 {[%clk 0:02:57]} 6. Be2 {[%clk 0:02:55]}  Bb5 {[%clk 0:02:57]} 7. O-O {[%clk 0:02:55]}  Nd7 {[%clk 0:02:49]} 8. dxc5 {[%clk 0:02:49]}  Bxe2 {[%clk 0:02:36]} 9. Qxe2 {[%clk 0:02:50]}  Qxc5 {[%clk 0:02:24]} 10. Be3 {[%clk 0:02:49]}  Qc7 {[%clk 0:02:22]} 11. Nbd2 {[%clk 0:02:40]}  Ne7 {[%clk 0:02:16]} 12. Rfe1 {[%clk 0:02:24]}  Nc6 {[%clk 0:02:12]} 13. c4 {[%clk 0:02:25]}  Bb4 {[%clk 0:01:34]} 14. cxd5 {[%clk 0:02:23]}  exd5 {[%clk 0:01:33]} 15. e6 {[%clk 0:01:45]}  fxe6 {[%clk 0:01:29]} 16. Ng5 {[%clk 0:01:45]}  Qd6 {[%clk 0:01:13]} 17. Qg4 {[%clk 0:01:07]}  O-O-O {[%clk 0:00:57]} 18. Nf7 {[%clk 0:00:54]}  Qe5 {[%clk 0:00:46]} 19. Nxe5 {[%clk 0:00:53]} 1-0


[Site "https://www.chess.com"]

[Event "Titled Tuesday Blitz July 05 Late 2022"]
[White "Arnold, Ken"]
[Black "Gong, Patrick"]
[WhiteFideId "2056836"]
[BlackFideId "3222500"]
[WhiteElo "2282"]
[BlackElo "2103"]
[Result "0-1"]
[Round "02"]
[TimeControl "180+1"]
[Date "2022.07.06"]
[WhiteClock "0:00:06"]
[BlackClock "0:00:24"]

1. d4 {[%clk 0:03:00]}  Nf6 {[%clk 0:02:59]} 2. c4 {[%clk 0:03:01]}  c5 {[%clk 0:02:59]} 3. Nf3 {[%clk 0:03:01]}  g6 {[%clk 0:02:54]} 4. Nc3 {[%clk 0:03:01]}  Bg7 {[%clk 0:02:54]} 5. g3 {[%clk 0:02:59]}  O-O {[%clk 0:02:47]} 6. Bg2 {[%clk 0:02:58]}  d6 {[%clk 0:02:45]} 7. O-O {[%clk 0:02:58]}  Nbd7 {[%clk 0:02:37]} 8. Bg5 {[%clk 0:02:56]}  a6 {[%clk 0:02:34]} 9. Qd2 {[%clk 0:02:54]}  Rb8 {[%clk 0:02:30]} 10. Rfd1 {[%clk 0:02:52]}  b6 {[%clk 0:02:29]} 11. Rac1 {[%clk 0:02:46]}  Re8 {[%clk 0:02:26]} 12. b3 {[%clk 0:02:45]}  Bb7 {[%clk 0:02:21]} 13. d5 {[%clk 0:02:39]}  b5 {[%clk 0:02:20]} 14. Qd3 {[%clk 0:02:26]}  Qa5 {[%clk 0:01:55]} 15. Bd2 {[%clk 0:02:06]}  Qb6 {[%clk 0:01:53]} 16. e4 {[%clk 0:02:01]}  Ng4 {[%clk 0:01:50]} 17. cxb5 {[%clk 0:01:52]}  Nge5 {[%clk 0:01:41]} 18. Nxe5 {[%clk 0:01:51]}  Nxe5 {[%clk 0:01:42]} 19. Qe2 {[%clk 0:01:51]}  axb5 {[%clk 0:01:43]} 20. Qxb5 {[%clk 0:01:47]}  Ba6 {[%clk 0:01:29]} 21. Qxb6 {[%clk 0:01:44]}  Rxb6 {[%clk 0:01:30]} 22. Na4 {[%clk 0:01:43]}  Rb7 {[%clk 0:01:27]} 23. Bf1 {[%clk 0:01:33]}  Bxf1 {[%clk 0:01:21]} 24. Kxf1 {[%clk 0:01:33]}  Nf3 {[%clk 0:01:17]} 25. Kg2 {[%clk 0:01:18]}  Nd4 {[%clk 0:01:03]} 26. Bc3 {[%clk 0:01:16]}  Ra8 {[%clk 0:01:03]} 27. Bxd4 {[%clk 0:01:15]}  Bxd4 {[%clk 0:01:03]} 28. Rc4 {[%clk 0:01:14]}  Kg7 {[%clk 0:01:00]} 29. f4 {[%clk 0:01:14]}  f5 {[%clk 0:00:58]} 30. exf5 {[%clk 0:01:12]}  gxf5 {[%clk 0:00:59]} 31. Re1 {[%clk 0:01:12]}  Bf6 {[%clk 0:00:58]} 32. Re6 {[%clk 0:01:09]}  Kf7 {[%clk 0:00:58]} 33. Kf3 {[%clk 0:01:07]}  Rc8 {[%clk 0:00:56]} 34. h3 {[%clk 0:01:05]}  h5 {[%clk 0:00:55]} 35. Re2 {[%clk 0:01:01]}  Rcc7 {[%clk 0:00:53]} 36. Rc1 {[%clk 0:00:58]}  Rb4 {[%clk 0:00:52]} 37. Rec2 {[%clk 0:00:49]}  Rd4 {[%clk 0:00:49]} 38. Nb6 {[%clk 0:00:42]}  Rd3+ {[%clk 0:00:41]} 39. Kg2 {[%clk 0:00:41]}  h4 {[%clk 0:00:40]} 40. gxh4 {[%clk 0:00:29]}  Bxh4 {[%clk 0:00:41]} 41. Rc3 {[%clk 0:00:28]}  Rd2+ {[%clk 0:00:40]} 42. Kh1 {[%clk 0:00:26]}  Rb7 {[%clk 0:00:34]} 43. Nc4 {[%clk 0:00:25]}  Rxa2 {[%clk 0:00:35]} 44. Ne3 {[%clk 0:00:23]}  Bf6 {[%clk 0:00:33]} 45. R3c2 {[%clk 0:00:22]}  Rxc2 {[%clk 0:00:32]} 46. Rxc2 {[%clk 0:00:21]}  Rxb3 {[%clk 0:00:33]} 47. Nxf5 {[%clk 0:00:21]}  Rxh3+ {[%clk 0:00:33]} 48. Kg2 {[%clk 0:00:22]}  Rd3 {[%clk 0:00:33]} 49. Ng3 {[%clk 0:00:14]}  Rxd5 {[%clk 0:00:32]} 50. Kf3 {[%clk 0:00:14]}  Rd3+ {[%clk 0:00:32]} 51. Kg4 {[%clk 0:00:14]}  Rc3 {[%clk 0:00:29]} 52. Rh2 {[%clk 0:00:13]}  Ke6 {[%clk 0:00:28]} 53. Rh5 {[%clk 0:00:13]}  c4 {[%clk 0:00:27]} 54. Ne4 {[%clk 0:00:13]}  Re3 {[%clk 0:00:27]} 55. f5+ {[%clk 0:00:11]}  Ke5 {[%clk 0:00:24]} 56. Ng3 {[%clk 0:00:09]}  c3 {[%clk 0:00:24]} 57. Rh2 {[%clk 0:00:09]}  Kd4 {[%clk 0:00:23]} 58. Rc2 {[%clk 0:00:08]}  Kd3 {[%clk 0:00:23]} 59. Rc1 {[%clk 0:00:06]}  Rxg3+ {[%clk 0:00:23]} 60. Kxg3 {[%clk 0:00:06]}  c2 {[%clk 0:00:24]} 0-1


[Site "https://www.chess.com"]

[Event "Titled Tuesday Blitz July 05 Late 2022"]
[White "Bjelobrk, Igor"]
[Black "Oparin, Grigoriy"]
[WhiteFideId "4300726"]
[BlackFideId "24125890"]
[WhiteElo "2335"]
[BlackElo "2639"]
[Result "0-1"]
[Round "02"]
[TimeControl "180+1"]
[Date "2022.07.05"]
[WhiteClock "0:00:17"]
[BlackClock "0:00:42"]

1. Nf3 {[%clk 0:02:57]}  c5 {[%clk 0:02:57]} 2. c4 {[%clk 0:02:56]}  Nf6 {[%clk 0:02:57]} 3. d4 {[%clk 0:02:55]}  cxd4 {[%clk 0:02:56]} 4. Nxd4 {[%clk 0:02:56]}  e6 {[%clk 0:02:57]} 5. g3 {[%clk 0:02:49]}  d5 {[%clk 0:02:56]} 6. Bg2 {[%clk 0:02:46]}  Nc6 {[%clk 0:02:54]} 7. O-O {[%clk 0:02:42]}  e5 {[%clk 0:02:46]} 8. Nxc6 {[%clk 0:02:41]}  bxc6 {[%clk 0:02:47]} 9. Nc3 {[%clk 0:02:34]}  Be6 {[%clk 0:02:42]} 10. Bg5 {[%clk 0:02:31]}  e4 {[%clk 0:02:42]} 11. Qa4 {[%clk 0:02:23]}  Qd7 {[%clk 0:02:35]} 12. Bxf6 {[%clk 0:02:23]}  gxf6 {[%clk 0:02:36]} 13. cxd5 {[%clk 0:02:20]}  cxd5 {[%clk 0:02:34]} 14. Qxd7+ {[%clk 0:02:19]}  Kxd7 {[%clk 0:02:35]} 15. Rfd1 {[%clk 0:02:19]}  f5 {[%clk 0:02:26]} 16. Nxd5 {[%clk 0:02:18]}  Rb8 {[%clk 0:02:10]} 17. b3 {[%clk 0:02:02]}  Ba3 {[%clk 0:02:00]} 18. Bh3 {[%clk 0:02:00]}  Ke8 {[%clk 0:01:53]} 19. Ne3 {[%clk 0:01:52]}  f4 {[%clk 0:01:53]} 20. Bxe6 {[%clk 0:01:51]}  fxe3 {[%clk 0:01:53]} 21. Bd7+ {[%clk 0:01:48]}  Ke7 {[%clk 0:01:54]} 22. fxe3 {[%clk 0:01:44]}  Bc5 {[%clk 0:01:44]} 23. Kf2 {[%clk 0:01:43]}  Rb6 {[%clk 0:01:44]} 24. Bf5 {[%clk 0:01:38]}  Rf6 {[%clk 0:01:41]} 25. Rd5 {[%clk 0:01:37]}  Bb6 {[%clk 0:01:39]} 26. Rad1 {[%clk 0:01:29]}  h5 {[%clk 0:01:34]} 27. Re5+ {[%clk 0:01:29]}  Kf8 {[%clk 0:01:34]} 28. a4 {[%clk 0:01:15]}  Kg7 {[%clk 0:01:25]} 29. a5 {[%clk 0:01:12]}  Bc7 {[%clk 0:01:26]} 30. Red5 {[%clk 0:01:06]}  Rb8 {[%clk 0:01:23]} 31. Rb1 {[%clk 0:01:00]}  Rd8 {[%clk 0:01:19]} 32. Rbd1 {[%clk 0:00:57]}  Rxf5+ {[%clk 0:01:18]} 33. Rxf5 {[%clk 0:00:54]}  Rxd1 {[%clk 0:01:19]} 34. Rxh5 {[%clk 0:00:53]}  Rc1 {[%clk 0:01:08]} 35. Rb5 {[%clk 0:00:52]}  a6 {[%clk 0:01:04]} 36. Rf5 {[%clk 0:00:46]}  Kg6 {[%clk 0:01:00]} 37. Rd5 {[%clk 0:00:42]}  f6 {[%clk 0:00:58]} 38. h4 {[%clk 0:00:40]}  Be5 {[%clk 0:00:56]} 39. g4 {[%clk 0:00:38]}  Rb1 {[%clk 0:00:56]} 40. g5 {[%clk 0:00:26]}  Rxb3 {[%clk 0:00:54]} 41. gxf6 {[%clk 0:00:26]}  Kxf6 {[%clk 0:00:53]} 42. h5 {[%clk 0:00:26]}  Rb5 {[%clk 0:00:46]} 43. Rxb5 {[%clk 0:00:25]}  axb5 {[%clk 0:00:47]} 44. a6 {[%clk 0:00:20]}  Bb8 {[%clk 0:00:47]} 45. Ke1 {[%clk 0:00:18]}  Ba7 {[%clk 0:00:47]} 46. Kd2 {[%clk 0:00:18]}  Kg5 {[%clk 0:00:42]} 47. Kc3 {[%clk 0:00:18]}  Bc5 {[%clk 0:00:42]} 48. a7 {[%clk 0:00:16]}  Bxa7 {[%clk 0:00:43]} 49. Kb4 {[%clk 0:00:16]}  Bxe3 {[%clk 0:00:43]} 50. Kxb5 {[%clk 0:00:17]}  Bd2 {[%clk 0:00:42]} 0-1


[Site "https://www.chess.com"]

[Event "Titled Tuesday Blitz July 05 Late 2022"]
[White "Della Morte, German"]
[Black "Rostovtsev, Dmitry"]
[WhiteFideId "113522"]
[BlackFideId "34278320"]
[WhiteElo "2363"]
[BlackElo "2232"]
[Result "0-1"]
[Round "02"]
[TimeControl "180+1"]
[Date "2022.07.05"]
[WhiteClock "0:00:12"]
[BlackClock "0:00:35"]

1. e4 {[%clk 0:03:00]}  e5 {[%clk 0:02:50]} 2. Nf3 {[%clk 0:03:00]}  Nc6 {[%clk 0:02:50]} 3. Bc4 {[%clk 0:03:00]}  Bc5 {[%clk 0:02:50]} 4. O-O {[%clk 0:03:00]}  Nf6 {[%clk 0:02:50]} 5. d3 {[%clk 0:03:00]}  d6 {[%clk 0:02:50]} 6. a4 {[%clk 0:03:00]}  a6 {[%clk 0:02:49]} 7. c3 {[%clk 0:03:00]}  O-O {[%clk 0:02:49]} 8. h3 {[%clk 0:02:57]}  h6 {[%clk 0:02:49]} 9. Re1 {[%clk 0:02:56]}  Nh5 {[%clk 0:02:49]} 10. Nxe5 {[%clk 0:02:45]}  Qh4 {[%clk 0:02:48]} 11. d4 {[%clk 0:02:36]}  Nxe5 {[%clk 0:02:46]} 12. Be2 {[%clk 0:02:35]}  Bxh3 {[%clk 0:01:35]} 13. Bxh5 {[%clk 0:02:12]}  Bg4 {[%clk 0:01:34]} 14. Bxg4 {[%clk 0:01:54]}  Nxg4 {[%clk 0:01:35]} 15. Qf3 {[%clk 0:01:47]}  Ba7 {[%clk 0:00:58]} 16. Bf4 {[%clk 0:01:18]}  f5 {[%clk 0:00:58]} 17. e5 {[%clk 0:00:55]}  dxe5 {[%clk 0:00:41]} 18. Bxe5 {[%clk 0:00:55]}  Rae8 {[%clk 0:00:40]} 19. Nd2 {[%clk 0:00:21]}  f4 {[%clk 0:00:40]} 20. Nf1 {[%clk 0:00:11]}  Rf5 {[%clk 0:00:36]} 21. Bxc7 {[%clk 0:00:10]}  Rxe1 {[%clk 0:00:34]} 22. Rxe1 {[%clk 0:00:11]}  Rh5 {[%clk 0:00:35]} 23. Qh3 {[%clk 0:00:12]}  Qxf2+ {[%clk 0:00:34]} 24. Kh1 {[%clk 0:00:12]}  Rxh3+ {[%clk 0:00:35]} 25. gxh3 {[%clk 0:00:12]}  Qxe1 {[%clk 0:00:35]} 0-1


[Site "https://www.chess.com"]